bitfinex/quotes_SOLUSD_20220104
["timestamp","ask_amount","ask_price","bid_price","bid_amount"]
[1641276209881,34.2884,167.83,167.68,29.86357452]
[1641276211183,34.2884,167.83,167.68,30.12357452]
[1641276211784,33.7884,167.83,167.68,30.12357452]
[1641276212888,34.2884,167.83,167.68,30.12357452]
[1641276216321,34.2884,167.83,167.66,73.7868]
[1641276216519,34.2884,167.83,167.64,24.49089368]
[1641276216520,35.71509368,167.83,167.64,24.49089368]
[1641276216723,35.71509368,167.83,167.61,24.79229368]
[1641276216724,2.5415,167.81,167.61,24.79229368]
[1641276217015,54.8902,167.8,167.61,24.79229368]
[1641276217216,107.0,167.79,167.61,24.79229368]
[1641276217416,2.94501463,167.77,167.62,76.8752]
[1641276217616,8.56,167.76,167.62,76.8752]
[1641276217816,2.38152263,167.74,167.62,76.8752]
[1641276218017,8.56,167.73,167.62,77.1352]
[1641276218218,8.56,167.73,167.62,76.8752]
[1641276218417,8.82,167.73,167.62,76.8752]
[1641276218718,8.82,167.73,167.63,1.42669368]
[1641276219517,8.82,167.73,167.6,1.42669368]
[1641276219728,9.32,167.73,167.6,1.42669368]
[1641276219917,9.32,167.73,167.57,74.8029]
[1641276220319,3.02995525,167.71,167.57,76.22959368]
[1641276220517,11.84995525,167.71,167.58,31.54549532]
[1641276220718,12.34995525,167.71,167.58,31.54549532]
[1641276220919,11.84995525,167.71,167.58,33.232189]
[1641276221121,9.8564,167.71,167.58,34.513189]
[1641276221321,9.8564,167.71,167.58,59.193089]
[1641276221525,1.2964,167.71,167.59,8.56]
[1641276221723,22.5988,167.72,167.59,8.56]
[1641276221924,22.5988,167.72,167.6,1.42669368]
[1641276222123,25.62330148,167.72,167.6,9.98669368]
[1641276222424,25.62330148,167.72,167.61,1.42669368]
[1641276222825,3.02450148,167.72,167.61,1.68669368]
[1641276223025,3.02450148,167.72,167.61,0.26]
[1641276223428,3.02450148,167.72,167.59,0.26]
[1641276223624,3.28450148,167.72,167.59,0.26]
[1641276223824,3.28450148,167.72,167.58,57.50639532]
[1641276224427,11.58450148,167.72,167.58,57.50639532]
[1641276224627,12.88700148,167.72,167.58,57.50639532]
[1641276224828,12.88700148,167.72,167.59,1.42669368]
[1641276225027,13.14700148,167.72,167.59,1.68669368]
[1641276225627,12.88700148,167.72,167.59,0.26]
[1641276226028,12.88700148,167.72,167.58,57.76639532]
[1641276226228,12.88700148,167.72,167.59,1.42669368]
[1641276226530,12.88700148,167.72,167.59,0.26]
[1641276227126,13.14700148,167.72,167.59,0.26]
[1641276227326,13.14700148,167.72,167.58,57.76639532]
[1641276227930,13.14700148,167.72,167.58,57.50639532]
[1641276229235,13.14700148,167.72,167.58,57.76639532]
[1641276229635,12.88700148,167.72,167.58,59.193089]
[1641276229835,12.88700148,167.72,167.58,67.753089]
[1641276231736,24.519,167.74,167.58,67.753089]
[1641276232037,24.519,167.74,167.58,86.18281296]
[1641276232636,2.37558878,167.73,167.58,86.18281296]
[1641276234042,25.2307,167.78,167.58,193.18281296]
[1641276234442,25.2307,167.78,167.58,199.64581296]
[1641276234847,25.2307,167.78,167.59,1.2952]
[1641276235042,2.80438521,167.77,167.6,8.56]
[1641276235242,2.80438521,167.77,167.6,9.98669368]
[1641276235443,2.80438521,167.77,167.61,24.01499368]
[1641276235642,2.80438521,167.77,167.62,8.56]
[1641276235842,2.80438521,167.77,167.63,24.3552]
[1641276236042,2.80438521,167.77,167.65,31.42827283]
[1641276236244,2.80438521,167.77,167.65,140.54857283]
[1641276236444,2.80438521,167.77,167.65,140.80857283]
[1641276237443,2.80438521,167.77,167.65,140.54857283]
[1641276237644,3.06438521,167.77,167.65,84.2744]
[1641276237844,3.56438521,167.77,167.65,75.7144]
[1641276238046,8.56,167.76,167.6,9.8681]
[1641276238244,2.18049049,167.74,167.61,23.2861]
[1641276238646,11.00049049,167.74,167.61,23.2861]
[1641276238847,12.36469049,167.74,167.61,23.2861]
[1641276239448,12.36469049,167.74,167.61,23.5461]
[1641276240748,12.36469049,167.74,167.61,23.2861]
[1641276241950,12.36469049,167.74,167.61,23.5461]
[1641276244075,12.36469049,167.74,167.6,1.3081]
[1641276244282,22.7222,167.73,167.59,78.689]
[1641276244481,31.2822,167.73,167.56,1.42669368]
[1641276244679,32.0422,167.73,167.55,0.02]
[1641276244878,33.46889368,167.73,167.55,0.02]
[1641276245378,2.4967856,167.7,167.55,0.02]
[1641276245579,9.8146,167.69,167.55,0.02]
[1641276245783,9.8146,167.69,167.55,1.44669368]
[1641276245982,9.8146,167.69,167.55,10.00669368]
[1641276246280,9.8146,167.69,167.55,9.98669368]
[1641276246883,9.8146,167.69,167.55,10.24669368]
[1641276247087,10.0746,167.69,167.55,10.24669368]
[1641276247282,10.0746,167.69,167.55,9.98669368]
[1641276249386,10.0746,167.69,167.55,10.24669368]
[1641276250787,10.0746,167.69,167.55,1.68669368]
[1641276251187,22.6022,167.68,167.55,10.24669368]
[1641276251386,2.94136945,167.67,167.55,10.24669368]
[1641276252388,4.23496945,167.67,167.55,10.24669368]
[1641276253892,4.23496945,167.67,167.55,9.98669368]
[1641276254095,8.56,167.66,167.54,1.3567]
[1641276254393,8.56,167.66,167.53,22.5537]
[1641276254595,9.32,167.66,167.53,22.5537]
[1641276254793,8.82,167.66,167.52,1.42669368]
[1641276255196,9.32,167.66,167.52,1.42669368]
[1641276255395,23.4374,167.65,167.52,1.68669368]
[1641276255594,2.15731536,167.64,167.52,1.68669368]
[1641276255996,2.41731536,167.64,167.53,1.42669368]
[1641276256195,2.41731536,167.64,167.53,1.68669368]
[1641276256196,2.15731536,167.64,167.53,1.68669368]
[1641276256797,2.15731536,167.64,167.54,1.42669368]
[1641276256998,2.15731536,167.64,167.54,1.68669368]
[1641276257201,1.3274,167.65,167.54,1.68669368]
[1641276257399,23.0069,167.68,167.55,1.42669368]
[1641276257598,24.3466,167.68,167.55,1.68669368]
[1641276257999,24.3466,167.68,167.56,1.42669368]
[1641276258400,2.88801095,167.67,167.56,1.68669368]
[1641276258800,2.88801095,167.67,167.57,32.23019965]
[1641276259001,2.88801095,167.67,167.57,32.49019965]
[1641276259200,24.3466,167.68,167.58,1.42669368]
[1641276259605,24.3466,167.68,167.58,1.68669368]
[1641276260000,25.4711,167.7,167.59,1.42669368]
[1641276260202,2.54294218,167.69,167.59,1.42669368]
[1641276260400,2.54294218,167.69,167.59,1.68669368]
[1641276261024,2.54294218,167.69,167.6,1.42669368]
[1641276261528,2.54294218,167.69,167.6,1.68669368]
[1641276261926,2.54294218,167.69,167.61,1.42669368]
[1641276262127,1.2848,167.7,167.61,1.42669368]
[1641276262331,34.4968,167.76,167.61,1.68669368]
[1641276262528,34.4968,167.76,167.62,23.1903]
[1641276262529,25.9212,167.75,167.62,23.1903]
[1641276262728,25.9212,167.75,167.62,24.61699368]
[1641276262930,26.4212,167.75,167.62,24.87699368]
[1641276263128,26.4212,167.75,167.63,1.42669368]
[1641276263331,2.39953483,167.74,167.64,31.49261666]
[1641276263629,2.39953483,167.74,167.64,31.75261666]
[1641276264532,2.39953483,167.74,167.62,23.1903]
[1641276264732,2.39953483,167.74,167.61,1.42669368]
[1641276264939,2.65953483,167.74,167.6,11.1561]
[1641276265130,22.9473,167.73,167.6,11.1561]
[1641276265430,22.9473,167.73,167.61,28.2439725]
[1641276265632,24.4681,167.73,167.61,28.2439725]
[1641276266031,24.4681,167.73,167.61,29.67066618]
[1641276266435,24.4681,167.73,167.61,28.2439725]
[1641276266832,24.4681,167.73,167.61,28.5039725]
[1641276267632,24.4681,167.73,167.61,29.93066618]
[1641276268834,24.2081,167.73,167.61,29.93066618]
[1641276269036,24.4681,167.73,167.61,29.93066618]
[1641276269435,24.4681,167.73,167.61,53.74686618]
[1641276269637,24.2081,167.73,167.61,53.74686618]
[1641276269839,2.39953483,167.74,167.61,53.74686618]
[1641276270638,2.39953483,167.74,167.61,62.30686618]
[1641276278041,2.65953483,167.74,167.61,62.30686618]
[1641276278243,2.65953483,167.74,167.61,60.8801725]
[1641276279541,2.65953483,167.74,167.61,62.04686618]
[1641276280946,2.65953483,167.74,167.61,62.30686618]
[1641276281147,2.65953483,167.74,167.61,62.04686618]
[1641276281545,2.65953483,167.74,167.61,61.40360213]
[1641276282349,2.65953483,167.74,167.61,61.66360213]
[1641276282748,1.2709,167.73,167.61,61.66360213]
[1641276282952,1.5309,167.73,167.61,61.66360213]
[1641276283649,1.5309,167.73,167.61,61.40360213]
[1641276284250,1.5309,167.73,167.61,33.80289368]
[1641276284450,1.5309,167.73,167.59,22.9622]
[1641276284650,26.7451,167.73,167.59,22.9622]
[1641276285455,8.04890763,167.72,167.59,23.2222]
[1641276285851,8.30890763,167.72,167.59,23.2222]
[1641276286453,1.245,167.71,167.59,23.2222]
[1641276286653,2.85925358,167.7,167.59,23.2222]
[1641276287053,3.11925358,167.7,167.59,23.2222]
[1641276287855,3.11925358,167.7,167.58,73.6609]
[1641276288061,11.67925358,167.7,167.55,1.42669368]
[1641276288255,12.17925358,167.7,167.51,102.26]
[1641276288457,12.17925358,167.7,167.51,8.56]
[1641276288458,1.2683,167.69,167.51,8.56]
[1641276288655,8.56,167.68,167.51,8.56]
[1641276288855,2.97931258,167.66,167.52,29.50338378]
[1641276289056,18.08331258,167.66,167.52,29.50338378]
[1641276289256,18.58331258,167.66,167.52,29.76338378]
[1641276289557,1.3059,167.65,167.52,29.76338378]
[1641276289958,2.0659,167.65,167.52,29.76338378]
[1641276290158,25.5824,167.65,167.52,29.76338378]
[1641276292358,24.8224,167.65,167.52,31.04258378]
[1641276292560,24.8224,167.65,167.53,25.39389368]
[1641276292959,24.8224,167.65,167.53,25.65389368]
[1641276293961,24.8224,167.65,167.54,1.42669368]
[1641276294361,24.8224,167.65,167.54,1.68669368]
[1641276295362,24.8224,167.65,167.55,1.42669368]
[1641276295562,24.8224,167.65,167.56,27.51384888]
[1641276295764,1.2461,167.67,167.56,27.51384888]
[1641276295963,1.2461,167.67,167.56,30.49664256]
[1641276298070,1.2461,167.67,167.56,29.06994888]
[1641276298272,1.2461,167.67,167.56,54.06904888]
[1641276298566,1.2461,167.67,167.57,1.42669368]
[1641276298766,1.2461,167.67,167.56,54.06904888]
[1641276299167,1.2461,167.67,167.56,55.49574256]
[1641276299868,1.2461,167.67,167.56,54.06904888]
[1641276300873,1.5061,167.67,167.56,54.06904888]
[1641276301673,1.5061,167.67,167.57,1.42669368]
[1641276302074,1.5061,167.67,167.57,0.26]
[1641276302589,1.5061,167.67,167.56,52.77294888]
[1641276303990,1.5061,167.67,167.56,27.77384888]
[1641276304189,1.5061,167.67,167.54,80.3845]
[1641276304791,2.0061,167.67,167.54,79.0143]
[1641276305090,3.2479,167.67,167.54,79.0143]
[1641276305291,11.8079,167.67,167.54,79.0143]
[1641276306990,11.8079,167.67,167.54,79.2743]
[1641276309192,11.0479,167.67,167.55,24.1835]
[1641276309492,2.4879,167.67,167.55,24.4435]
[1641276309895,2.4879,167.67,167.55,25.87019368]
[1641276310295,24.68439274,167.68,167.55,25.87019368]
[1641276310495,32.0713,167.7,167.55,27.23469368]
[1641276310696,24.442,167.72,167.56,8.56]
[1641276310897,24.442,167.72,167.57,24.8406]
[1641276311100,24.442,167.72,167.57,25.1006]
[1641276311397,2.35547577,167.71,167.58,24.06780474]
[1641276312003,2.61547577,167.71,167.58,24.06780474]
[1641276312298,2.61547577,167.71,167.58,26.75299842]
[1641276312598,2.61547577,167.71,167.58,27.01299842]
[1641276312799,2.35547577,167.71,167.59,24.6394]
[1641276312999,24.442,167.72,167.59,24.8994]
[1641276313200,1.3405,167.72,167.59,34.88609368]
[1641276313999,2.87780384,167.71,167.59,33.4594]
[1641276314201,2.87780384,167.71,167.59,112.265]
[1641276315503,2.87780384,167.71,167.6,1.42669368]
[1641276315706,2.87780384,167.71,167.59,112.265]
[1641276316303,2.87780384,167.71,167.59,113.69169368]
[1641276316905,1.3405,167.72,167.59,113.69169368]
[1641276317105,24.5905,167.74,167.59,113.69169368]
[1641276317308,24.5905,167.74,167.59,123.3322772]
[1641276317910,26.97773252,167.74,167.59,123.3322772]
[1641276319307,3.64933252,167.74,167.59,123.3322772]
[1641276319507,2.38723252,167.74,167.59,123.3322772]
[1641276323315,2.38723252,167.74,167.59,129.11084935]
[1641276323714,1.3436,167.76,167.59,129.11084935]
[1641276324021,23.3692,167.79,167.61,0.3053381]
[1641276324223,8.56,167.81,167.62,8.56]
[1641276324415,8.56,167.81,167.63,73.03791606]
[1641276324617,8.56,167.81,167.64,8.56]
[1641276324917,2.85386313,167.8,167.65,100.0544]
[1641276325118,2.85386313,167.8,167.67,27.95885598]
[1641276325416,2.85386313,167.8,167.67,36.51885598]
[1641276325417,3.11386313,167.8,167.67,36.51885598]
[1641276325618,3.11386313,167.8,167.67,36.77885598]
[1641276326019,3.11386313,167.8,167.68,24.4621]
[1641276326421,3.11386313,167.8,167.68,24.7221]
[1641276327024,3.11386313,167.8,167.68,24.4621]
[1641276327227,2.85386313,167.8,167.68,25.8278]
[1641276327425,3.11386313,167.8,167.68,25.8278]
[1641276327628,3.11386313,167.8,167.68,34.3878]
[1641276328448,3.11386313,167.8,167.69,1.42669368]
[1641276328646,3.11386313,167.8,167.7,8.56]
[1641276328848,2.85386313,167.8,167.71,31.11365705]
[1641276329048,2.85386313,167.8,167.71,31.37365705]
[1641276331553,2.85386313,167.8,167.71,31.11365705]
[1641276331755,3.11386313,167.8,167.7,8.56]
[1641276332752,3.11386313,167.8,167.7,32.69074307]
[1641276332951,3.11386313,167.8,167.7,32.95074307]
[1641276333654,2.85386313,167.8,167.7,32.95074307]
[1641276334455,3.11386313,167.8,167.7,32.95074307]
[1641276337660,2.85386313,167.8,167.7,32.95074307]
[1641276338061,3.11386313,167.8,167.7,32.95074307]
[1641276338359,2.85386313,167.8,167.7,32.95074307]
[1641276338561,3.11386313,167.8,167.7,32.95074307]
[1641276343267,2.85386313,167.8,167.7,32.95074307]
[1641276344870,3.11386313,167.8,167.7,32.95074307]
[1641276346072,3.11386313,167.8,167.7,24.13074307]
[1641276347876,3.11386313,167.8,167.67,8.58]
[1641276348074,3.11386313,167.8,167.67,8.84]
[1641276348874,3.11386313,167.8,167.68,23.78040141]
[1641276349075,3.11386313,167.8,167.69,8.56]
[1641276349480,3.11386313,167.8,167.69,8.82]
[1641276350878,2.85386313,167.8,167.69,8.82]
[1641276352580,3.11386313,167.8,167.69,8.82]
[1641276359088,3.11386313,167.8,167.69,10.1147]
[1641276362097,2.85386313,167.8,167.69,10.1147]
[1641276362919,1.3008,167.81,167.69,19.75528352]
[1641276363117,26.2927,167.87,167.69,19.75528352]
[1641276363415,49.418,167.87,167.7,102.3381]
[1641276363616,49.418,167.87,167.72,26.16145922]
[1641276363818,2.17712977,167.86,167.73,33.3187]
[1641276364018,2.17712977,167.86,167.73,33.5787]
[1641276364418,24.4821,167.85,167.73,33.5787]
[1641276365919,2.17712977,167.86,167.73,33.5787]
[1641276367222,2.43712977,167.86,167.73,33.3187]
[1641276367429,24.403,167.85,167.73,33.3187]
[1641276367820,24.663,167.85,167.73,33.3187]
[1641276368021,1.281,167.84,167.73,9.896]
[1641276368222,1.281,167.84,167.73,8.56]
[1641276368424,1.541,167.84,167.73,8.56]
[1641276368824,1.541,167.84,167.72,26.16145922]
[1641276370524,1.541,167.84,167.72,26.42145922]
[1641276371525,1.541,167.84,167.72,26.16145922]
[1641276372525,1.541,167.84,167.7,86.6716]
[1641276372928,2.041,167.84,167.7,86.9316]
[1641276373325,23.9092,167.83,167.7,86.9316]
[1641276373525,24.1692,167.83,167.71,23.82089014]
[1641276373926,24.1692,167.83,167.71,24.08089014]
[1641276376327,24.1692,167.83,167.71,47.51199014]
[1641276376931,24.1692,167.83,167.71,23.82089014]
[1641276377332,8.56,167.82,167.7,78.1116]
[1641276377535,8.82,167.82,167.65,0.02]
[1641276377733,2.81421124,167.8,167.65,0.02]
[1641276377933,8.56,167.79,167.65,0.02]
[1641276378334,22.6662,167.78,167.62,26.74458864]
[1641276378537,8.56,167.77,167.62,26.74458864]
[1641276378834,10.393,167.77,167.62,26.74458864]
[1641276379036,10.653,167.77,167.62,26.74458864]
[1641276379634,23.4575,167.76,167.62,26.74458864]
[1641276379835,23.9575,167.76,167.62,26.74458864]
[1641276380037,24.2175,167.76,167.62,26.74458864]
[1641276380236,23.7175,167.76,167.63,24.9322]
[1641276381036,25.0111,167.76,167.63,26.3031]
[1641276381236,25.0111,167.76,167.63,99.4547]
[1641276388968,25.0111,167.76,167.63,74.5225]
[1641276389173,33.5711,167.76,167.63,73.1516]
[1641276389367,34.0711,167.76,167.63,73.1516]
[1641276389568,34.0711,167.76,167.63,0.26]
[1641276389967,34.0711,167.76,167.62,27.00458864]
[1641276390170,33.5711,167.76,167.62,27.00458864]
[1641276390371,33.5711,167.76,167.63,23.53]
[1641276390569,33.5711,167.76,167.63,23.79]
[1641276390769,33.3111,167.76,167.63,23.79]
[1641276390971,33.3111,167.76,167.63,98.1624]
[1641276391972,33.5711,167.76,167.63,98.1624]
[1641276392172,10.1136,167.76,167.63,98.1624]
[1641276392372,0.26,167.76,167.63,116.36298352]
[1641276392571,11.3549,167.79,167.63,116.36298352]
[1641276392973,11.0949,167.79,167.63,116.36298352]
[1641276393174,23.4746,167.78,167.63,116.36298352]
[1641276394372,23.7346,167.78,167.63,116.36298352]
[1641276394972,23.4746,167.78,167.63,116.36298352]
[1641276395175,23.4746,167.78,167.63,125.94656841]
[1641276395375,23.4746,167.78,167.63,131.72514056]
[1641276395776,23.4746,167.78,167.63,133.15183424]
[1641276396878,23.7346,167.78,167.63,133.15183424]
[1641276398879,1.2634,167.79,167.63,133.15183424]
[1641276399081,34.7508,167.79,167.63,117.7896772]
[1641276399281,34.7508,167.79,167.63,116.36298352]
[1641276400082,34.4908,167.79,167.63,116.36298352]
[1641276400283,34.4908,167.79,167.63,117.7896772]
[1641276401483,34.7508,167.79,167.63,117.7896772]
[1641276401884,34.7508,167.79,167.63,116.36298352]
[1641276402083,34.7508,167.79,167.63,116.10298352]
[1641276403386,34.7508,167.79,167.63,116.36298352]
[1641276403587,34.7508,167.79,167.63,117.7896772]
[1641276406189,35.2508,167.79,167.63,117.7896772]
[1641276406893,35.2508,167.79,167.63,116.36298352]
[1641276411002,35.2508,167.79,167.63,116.10298352]
[1641276412397,35.2508,167.79,167.63,116.36298352]
[1641276424638,35.2508,167.79,167.63,106.4624]
[1641276425441,34.4908,167.79,167.63,106.4624]
[1641276425740,34.4908,167.79,167.63,123.7656772]
[1641276426344,34.4908,167.79,167.63,97.9024]
[1641276426545,34.4908,167.79,167.63,73.0562]
[1641276426743,43.9403,167.79,167.63,73.0562]
[1641276427043,1.42669368,167.78,167.63,73.0562]
[1641276427242,8.56,167.77,167.57,24.5551]
[1641276427444,14.191,167.77,167.57,47.87495354]
[1641276427746,127.99786532,167.77,167.57,24.5551]
[1641276427947,25.33279368,167.76,167.56,25.596]
[1641276428145,139.009,167.75,167.56,25.596]
[1641276428348,2.14794292,167.74,167.55,78.5525]
[1641276428547,9.8784,167.73,167.55,78.5525]
[1641276428849,24.9632,167.72,167.55,78.5525]
[1641276429049,8.9539,167.7,167.55,78.5525]
[1641276429247,9.8656,167.69,167.55,78.5525]
[1641276429445,2.19227009,167.68,167.55,78.5525]
[1641276429646,8.56,167.67,167.55,78.5525]
[1641276429946,9.06,167.67,167.55,78.5525]
[1641276430146,1.3152,167.66,167.55,78.5525]
[1641276430347,10.3752,167.66,167.55,78.5525]
[1641276430548,10.6352,167.66,167.55,78.5525]
[1641276430749,10.6352,167.66,167.55,78.8125]
[1641276431652,10.6352,167.66,167.5,8.56]
[1641276431849,10.6352,167.66,167.52,1.2722]
[1641276432950,10.3752,167.66,167.52,1.5322]
[1641276434385,10.3752,167.66,167.52,1.2722]
[1641276434579,10.6352,167.66,167.52,1.2722]
[1641276435580,10.6352,167.66,167.52,1.5322]
[1641276436379,10.6352,167.66,167.52,25.9685]
[1641276436780,10.1352,167.66,167.52,25.9685]
[1641276437480,10.6352,167.66,167.52,25.9685]
[1641276437681,10.1352,167.66,167.52,25.9685]
[1641276437880,10.6352,167.66,167.52,25.9685]
[1641276439782,10.3752,167.66,167.52,25.9685]
[1641276440382,9.8752,167.66,167.52,25.9685]
[1641276440981,10.1352,167.66,167.52,25.9685]
[1641276441985,10.6352,167.66,167.52,25.9685]
[1641276442788,10.1352,167.66,167.52,25.7085]
[1641276443990,10.1352,167.66,167.52,25.9685]
[1641276444996,10.6352,167.66,167.52,25.9685]
[1641276446694,22.9093,167.65,167.52,25.9685]
[1641276446896,31.4693,167.65,167.52,25.9685]
[1641276447094,31.7293,167.65,167.52,25.9685]
[1641276448098,31.4693,167.65,167.52,25.9685]
[1641276448499,31.7293,167.65,167.52,25.9685]
[1641276452527,1.318,167.66,167.53,9.98669368]
[1641276452730,1.318,167.66,167.54,24.9559]
[1641276452928,1.318,167.66,167.54,26.38259368]
[1641276453128,1.318,167.66,167.54,26.64259368]
[1641276453328,23.7609,167.67,167.54,26.64259368]
[1641276453929,23.7609,167.67,167.55,1.2811]
[1641276454128,23.7609,167.67,167.56,22.86369494]
[1641276454529,23.7609,167.67,167.56,23.12369494]
[1641276455028,2.19227009,167.68,167.56,23.12369494]
[1641276455628,2.19227009,167.68,167.57,23.5425]
[1641276456028,2.19227009,167.68,167.58,1.3548]
[1641276456531,78.2749,167.74,167.58,7.5758]
[1641276456729,23.8903,167.76,167.59,32.57409368]
[1641276456730,1.3193,167.73,167.59,32.57409368]
[1641276456929,1.3193,167.73,167.59,31.1474]
[1641276457129,1.3193,167.73,167.59,31.4074]
[1641276457531,2.46520811,167.72,167.6,73.6298]
[1641276457733,2.46520811,167.72,167.6,82.1898]
[1641276457930,2.46520811,167.72,167.6,82.4498]
[1641276459431,2.46520811,167.72,167.61,22.8872]
[1641276459833,2.46520811,167.72,167.61,23.1472]
[1641276467241,23.3819,167.74,167.61,23.1472]
[1641276467440,23.3819,167.74,167.62,8.56]
[1641276467641,23.3819,167.74,167.63,28.53498898]
[1641276467844,9.8756,167.78,167.63,62.44768898]
[1641276468041,10.1356,167.78,167.63,62.70768898]
[1641276468448,2.61225431,167.77,167.63,62.70768898]
[1641276468945,2.87225431,167.77,167.63,62.70768898]
[1641276469447,3.37225431,167.77,167.63,62.70768898]
[1641276470550,3.11225431,167.77,167.63,62.70768898]
[1641276471552,2.61225431,167.77,167.63,62.70768898]
[1641276471752,24.4186,167.81,167.63,64.13438266]
[1641276471753,32.9786,167.81,167.63,64.13438266]
[1641276471953,24.4186,167.81,167.63,73.77496618]
[1641276472255,1.2972,167.81,167.63,73.77496618]
[1641276472451,1.2972,167.81,167.63,83.06934853]
[1641276472655,2.67035614,167.8,167.63,92.01004853]
[1641276472855,25.5385,167.84,167.65,107.0]
[1641276473051,25.5385,167.84,167.66,32.6523]
[1641276473252,25.5385,167.84,167.66,53.01395955]
[1641276473455,25.5385,167.84,167.67,11.0672772]
[1641276473652,25.5385,167.84,167.68,105.6528]
[1641276473952,2.58289308,167.83,167.68,107.07949368]
[1641276474153,2.58289308,167.83,167.69,1.42669368]
[1641276474352,2.58289308,167.83,167.7,35.79363865]
[1641276474554,2.58289308,167.83,167.7,36.05363865]
[1641276474753,2.58289308,167.83,167.7,37.48033233]
[1641276474953,2.58289308,167.83,167.71,23.8258]
[1641276475156,2.58289308,167.83,167.72,8.56]
[1641276475356,1.327,167.87,167.72,8.56]
[1641276475559,33.9767,167.9,167.73,25.91919368]
[1641276475857,26.671,167.9,167.74,8.56]
[1641276476059,26.671,167.9,167.74,8.82]
[1641276476256,2.73700741,167.89,167.74,8.82]
[1641276476459,2.73700741,167.89,167.75,100.9262]
[1641276476657,2.73700741,167.89,167.76,8.56]
[1641276477058,2.73700741,167.89,167.76,8.82]
[1641276477462,2.73700741,167.89,167.77,23.78508038]
[1641276477656,2.73700741,167.89,167.78,8.56]
[1641276478158,2.73700741,167.89,167.78,8.82]
[1641276479266,2.73700741,167.89,167.78,8.56]
[1641276480564,2.73700741,167.89,167.78,8.82]
[1641276481968,2.73700741,167.89,167.78,8.56]
[1641276482765,2.99700741,167.89,167.78,8.56]
[1641276483964,2.99700741,167.89,167.78,8.82]
[1641276484768,2.99700741,167.89,167.78,8.56]
[1641276485992,2.73700741,167.89,167.78,8.56]
[1641276486394,2.99700741,167.89,167.78,8.56]
[1641276486592,2.99700741,167.89,167.78,8.82]
[1641276486793,2.99700741,167.89,167.78,32.342]
[1641276489097,2.73700741,167.89,167.78,32.342]
[1641276489297,2.73700741,167.89,167.78,33.76869368]
[1641276489698,9.9058,167.95,167.78,33.76869368]
[1641276489902,10.4058,167.95,167.78,33.76869368]
[1641276490502,10.4058,167.95,167.79,1.2804]
[1641276490705,2.40185264,167.94,167.79,1.2804]
[1641276490903,11.46185264,167.94,167.8,8.56]
[1641276491102,11.46185264,167.94,167.81,22.6126]
[1641276491501,11.46185264,167.94,167.81,22.8726]
[1641276491903,11.46185264,167.94,167.81,24.2151]
[1641276493405,10.96185264,167.94,167.81,24.2151]
[1641276494404,11.22185264,167.94,167.81,25.64179368]
[1641276495207,10.96185264,167.94,167.81,25.64179368]
[1641276495408,2.40185264,167.94,167.82,8.56]
[1641276495607,2.40185264,167.94,167.82,8.82]
[1641276496409,2.40185264,167.94,167.82,88.7502]
[1641276497009,2.40185264,167.94,167.84,28.50494349]
[1641276497414,2.40185264,167.94,167.84,28.76494349]
[1641276506844,2.40185264,167.94,167.84,28.50494349]
[1641276507344,2.66185264,167.94,167.82,8.56]
[1641276507946,3.16185264,167.94,167.79,8.58]
[1641276508146,3.16185264,167.94,167.8,25.26676605]
[1641276508346,2.94921317,167.93,167.8,25.26676605]
[1641276508549,3.20921317,167.93,167.8,25.26676605]
[1641276508747,3.70921317,167.93,167.8,25.26676605]
[1641276509349,3.70921317,167.93,167.8,25.52676605]
[1641276509552,1.68391317,167.92,167.8,25.52676605]
[1641276509952,2.44391317,167.92,167.8,25.52676605]
[1641276511056,2.44391317,167.92,167.8,0.26]
[1641276511251,26.00701317,167.92,167.8,0.26]
[1641276511453,25.50701317,167.92,167.79,8.82]
[1641276511854,1.68391317,167.91,167.79,8.82]
[1641276512057,1.94391317,167.91,167.79,35.38334751]
[1641276512455,3.27461317,167.91,167.79,35.38334751]
[1641276512652,3.01461317,167.91,167.79,35.38334751]
[1641276514055,3.01461317,167.91,167.79,36.81004119]
[1641276514255,3.01461317,167.91,167.8,24.7621]
[1641276514456,3.01461317,167.91,167.81,8.56]
[1641276514655,2.40185264,167.94,167.81,9.98669368]